fUST/lending_fUST_20260508
["ID","MTS","AMOUNT","RATE_DAILY","PERIOD"]
[421866949,1778250638000,-500.0,0.00010972,2]
[421866968,1778250638000,-329.18,0.00010974,2]
[421866969,1778250638000,-500.0,0.00010974,2]
[421866982,1778250638000,-500.0,0.00010974,2]
[421866977,1778250638000,-528.91,0.00010974,2]
[421866952,1778250638000,-827.99,0.00010972,2]
[421866971,1778250638000,-500.0,0.00010974,2]
[421866963,1778250638000,-500.0,0.00010974,2]
[421866954,1778250638000,-1569.46,0.00010972,2]
[421866964,1778250638000,-500.0,0.00010974,2]
[421866957,1778250638000,-500.0,0.00010974,2]
[421866956,1778250638000,-433.26402668,0.00010974,2]
[421866955,1778250638000,-933.96,0.00010972,2]
[421866959,1778250638000,-500.0,0.00010974,2]
[421866962,1778250638000,-500.0,0.00010974,2]
[421866967,1778250638000,-500.0,0.00010974,2]
[421866958,1778250638000,-500.0,0.00010974,2]
[421866961,1778250638000,-500.0,0.00010974,2]
[421866966,1778250638000,-500.0,0.00010974,2]
[421866960,1778250638000,-500.0,0.00010974,2]
[421866965,1778250638000,-500.0,0.00010974,2]
[421867036,1778250639000,-500.0,0.00011519,2]
[421867026,1778250639000,-500.0,0.00011248,2]
[421867021,1778250639000,-500.0,0.00011248,2]
[421867022,1778250639000,-500.0,0.00011248,2]
[421867016,1778250639000,-933.96,0.00011246,2]
[421867018,1778250639000,-500.0,0.00011248,2]
[421867024,1778250639000,-500.0,0.00011248,2]
[421867019,1778250639000,-500.0,0.00011248,2]
[421867027,1778250639000,-500.0,0.00011248,2]
[421867023,1778250639000,-500.0,0.00011248,2]
[421867013,1778250639000,-797.8814,0.00011246,2]
[421867025,1778250639000,-400.82210594,0.00011248,2]
[421867030,1778250639000,-500.0,0.00011248,2]
[421867033,1778250639000,-333.93,0.00011248,2]
[421867032,1778250639000,-500.0,0.00011248,2]
[421867035,1778250639000,-500.0,0.00011519,2]
[421867029,1778250639000,-528.91,0.00011248,2]
[421867028,1778250639000,-500.0,0.00011248,2]
[421867037,1778250639000,-500.0,0.00011519,2]
[421867034,1778250639000,-500.0,0.00011248,2]
[421867044,1778250639000,-725.13,0.00011519,2]
[421867038,1778250639000,-500.0,0.00011519,2]
[421867040,1778250639000,-500.0,0.00011519,2]
[421867017,1778250639000,-200.0,0.00011247,2]
[421867031,1778250639000,-581.2214599,0.00011248,2]
[421867020,1778250639000,-500.0,0.00011248,2]
[421866994,1778250639000,-500.0,0.00011245,2]
[421867014,1778250639000,-500.0,0.00011246,2]
[421866987,1778250639000,-500.0,0.00011245,2]
[421866989,1778250639000,-500.0,0.00011245,2]
[421866988,1778250639000,-500.0,0.00011245,2]
[421866992,1778250639000,-500.0,0.00011245,2]
[421866990,1778250639000,-500.0,0.00011245,2]
[421866995,1778250639000,-500.0,0.00011245,2]
[421866996,1778250639000,-725.13,0.00011245,2]
[421866991,1778250639000,-500.0,0.00011245,2]
[421866998,1778250639000,-500.0,0.00011246,2]
[421866993,1778250639000,-500.0,0.00011245,2]
[421866997,1778250639000,-500.0,0.00011246,2]
[421866999,1778250639000,-500.0,0.00011246,2]
[421867003,1778250639000,-910.45,0.00011246,2]
[421867000,1778250639000,-500.0,0.00011246,2]
[421867001,1778250639000,-500.0,0.00011246,2]
[421867002,1778250639000,-500.0,0.00011246,2]
[421867011,1778250639000,-500.0,0.00011246,2]
[421867005,1778250639000,-5837.42,0.00011246,2]
[421867009,1778250639000,-827.17,0.00011246,2]
[421867007,1778250639000,-581.79,0.00011246,2]
[421867006,1778250639000,-1142.42,0.00011246,2]
[421867010,1778250639000,-500.0,0.00011246,2]
[421867008,1778250639000,-500.0,0.00011246,2]
[421867004,1778250639000,-587.1,0.00011246,2]
[421867012,1778250639000,-827.99,0.00011246,2]
[421867015,1778250639000,-1569.46,0.00011246,2]
[421867043,1778250639000,-500.0,0.00011519,2]
[421867041,1778250639000,-500.0,0.00011519,2]
[421867042,1778250639000,-500.0,0.00011519,2]
[421867073,1778250639000,-500.0,0.00011522,2]
[421867075,1778250639000,-528.91,0.00011522,2]
[421867076,1778250639000,-500.0,0.00011522,2]
[421867081,1778250639000,-300.0,0.00011574,2]
[421867080,1778250639000,-500.0,0.00011522,2]
[421867084,1778250639000,-300.0,0.00011574,2]
[421867083,1778250639000,-300.0,0.00011574,2]
[421867091,1778250639000,-300.0,0.00011574,2]
[421867082,1778250639000,-300.0,0.00011574,2]
[421867086,1778250639000,-300.0,0.00011574,2]
[421867085,1778250639000,-300.0,0.00011574,2]
[421867088,1778250639000,-300.0,0.00011574,2]
[421867089,1778250639000,-300.0,0.00011574,2]
[421867090,1778250639000,-300.0,0.00011574,2]
[421867087,1778250639000,-300.0,0.00011574,2]
[421867093,1778250639000,-300.0,0.00011574,2]
[421867092,1778250639000,-300.0,0.00011574,2]
[421867095,1778250639000,-300.0,0.00011574,2]
[421867094,1778250639000,-300.0,0.00011574,2]
[421867097,1778250639000,-200.0,0.0001167,2]
[421867096,1778250639000,-420.0,0.00011621,2]
[421867098,1778250639000,-500.0,0.00011793,2]
[421867101,1778250639000,-500.0,0.00011793,2]
[421867099,1778250639000,-266.41,0.00011793,2]
[421867100,1778250639000,-500.0,0.00011793,2]
[421867072,1778250639000,-277.32,0.00011522,2]
[421867074,1778250639000,-500.0,0.00011522,2]
[421867045,1778250639000,-500.0,0.0001152,2]
[421867078,1778250639000,-500.0,0.00011522,2]
[421867039,1778250639000,-500.0,0.00011519,2]
[421867046,1778250639000,-500.0,0.0001152,2]
[421867047,1778250639000,-500.0,0.0001152,2]
[421867048,1778250639000,-500.0,0.0001152,2]
[421867052,1778250639000,-587.1,0.0001152,2]
[421867050,1778250639000,-500.0,0.0001152,2]
[421867051,1778250639000,-910.45,0.0001152,2]
[421867070,1778250639000,-500.0,0.00011522,2]
[421867053,1778250639000,-5837.42,0.0001152,2]
[421867056,1778250639000,-237.86,0.0001152,2]
[421867055,1778250639000,-581.79,0.0001152,2]
[421867058,1778250639000,-827.17,0.0001152,2]
[421867049,1778250639000,-500.0,0.0001152,2]
[421867054,1778250639000,-1142.42,0.0001152,2]
[421867061,1778250639000,-827.99,0.0001152,2]
[421867069,1778250639000,-500.0,0.00011522,2]
[421867068,1778250639000,-500.0,0.00011522,2]
[421867067,1778250639000,-500.0,0.00011522,2]
[421867066,1778250639000,-500.0,0.00011522,2]
[421867071,1778250639000,-500.0,0.00011522,2]
[421867062,1778250639000,-797.8814,0.0001152,2]
[421867065,1778250639000,-260.4178,0.0001152,2]
[421867060,1778250639000,-500.0,0.0001152,2]
[421867059,1778250639000,-500.0,0.0001152,2]
[421867064,1778250639000,-933.96,0.0001152,2]
[421867063,1778250639000,-1569.46,0.0001152,2]
[421867135,1778250640000,-500.0,0.00011796,2]
[421867137,1778250640000,-414.38937215,0.00011998,2]
[421867134,1778250640000,-500.0,0.00011796,2]
[421867136,1778250640000,-500.0,0.00011796,2]
[421867131,1778250640000,-500.0,0.00011796,2]
[421867133,1778250640000,-528.91,0.00011796,2]
[421867130,1778250640000,-500.0,0.00011796,2]
[421867140,1778250640000,-500.0,0.00012067,2]
[421867138,1778250640000,-500.0,0.00012,2]
[421867132,1778250640000,-500.0,0.00011796,2]
[421867142,1778250640000,-500.0,0.00012067,2]
[421867154,1778250640000,-587.1,0.00012068,2]
[421867152,1778250640000,-500.0,0.00012068,2]
[421867151,1778250640000,-500.0,0.00012068,2]
[421867150,1778250640000,-443.31,0.00012068,2]
[421867149,1778250640000,-500.0,0.00012068,2]
[421867147,1778250640000,-725.13,0.00012067,2]
[421867143,1778250640000,-500.0,0.00012067,2]
[421867144,1778250640000,-500.0,0.00012067,2]
[421867145,1778250640000,-500.0,0.00012067,2]
[421867146,1778250640000,-500.0,0.00012067,2]
[421867148,1778250640000,-500.0,0.00012068,2]
[421867153,1778250640000,-910.45,0.00012068,2]
[421867139,1778250640000,-500.0,0.00012067,2]
[421867141,1778250640000,-510.44,0.00012067,2]
[421867128,1778250640000,-500.0,0.00011796,2]
[421867116,1778250640000,-1142.42,0.00011794,2]
[421867124,1778250640000,-933.96,0.00011794,2]
[421867156,1778250640000,-1142.42,0.00012068,2]
[421867102,1778250640000,-500.0,0.00011793,2]
[421867103,1778250640000,-500.0,0.00011793,2]
[421867105,1778250640000,-500.0,0.00011793,2]
[421867104,1778250640000,-500.0,0.00011793,2]
[421867106,1778250640000,-500.0,0.00011793,2]
[421867107,1778250640000,-725.13,0.00011793,2]
[421867114,1778250640000,-587.1,0.00011794,2]
[421867112,1778250640000,-500.0,0.00011794,2]
[421867108,1778250640000,-500.0,0.00011794,2]
[421867109,1778250640000,-500.0,0.00011794,2]
[421867113,1778250640000,-910.45,0.00011794,2]
[421867111,1778250640000,-500.0,0.00011794,2]
[421867110,1778250640000,-500.0,0.00011794,2]
[421867126,1778250640000,-179.66,0.00011796,2]
[421867127,1778250640000,-500.0,0.00011796,2]
[421867115,1778250640000,-5837.42,0.00011794,2]
[421867119,1778250640000,-500.0,0.00011794,2]
[421867120,1778250640000,-500.0,0.00011794,2]
[421867122,1778250640000,-797.8814,0.00011794,2]
[421867117,1778250640000,-581.79,0.00011794,2]
[421867118,1778250640000,-827.17,0.00011794,2]
[421867123,1778250640000,-1569.46,0.00011794,2]
[421867125,1778250640000,-500.0,0.00011796,2]
[421867121,1778250640000,-827.99,0.00011794,2]
[421867129,1778250640000,-500.0,0.00011796,2]
[421867157,1778250640000,-581.79,0.00012068,2]
[421867159,1778250640000,-500.0,0.00012068,2]
[421867193,1778250640000,-910.45,0.00012342,2]
[421867199,1778250640000,-581.79,0.00012342,2]
[421867197,1778250640000,-1142.42,0.00012342,2]
[421867191,1778250640000,-500.0,0.00012342,2]
[421867195,1778250640000,-5837.42,0.00012342,2]
[421867201,1778250640000,-500.0,0.00012342,2]
[421867202,1778250640000,-500.0,0.00012342,2]
[421867194,1778250640000,-587.1,0.00012342,2]
[421867204,1778250640000,-797.8814,0.00012342,2]
[421867200,1778250640000,-827.17,0.00012342,2]
[421867205,1778250640000,-1569.46,0.00012342,2]
[421867206,1778250640000,-933.96,0.00012342,2]
[421867207,1778250640000,-500.0,0.00012344,2]
[421867209,1778250640000,-500.0,0.00012344,2]
[421867208,1778250640000,-500.0,0.00012344,2]
[421867212,1778250640000,-500.0,0.00012344,2]
[421867210,1778250640000,-500.0,0.00012344,2]
[421867211,1778250640000,-197.88,0.00012344,2]
[421867213,1778250640000,-528.91,0.00012344,2]
[421867214,1778250640000,-500.0,0.00012344,2]
[421867215,1778250640000,-500.0,0.00012344,2]
[421867216,1778250640000,-500.0,0.00012344,2]
[421867217,1778250640000,-161.58879827,0.00012411,2]
[421867219,1778250640000,-160.0,0.00012411,2]
[421867155,1778250640000,-5837.42,0.00012068,2]
[421867218,1778250640000,-160.0,0.00012411,2]
[421867203,1778250640000,-827.99,0.00012342,2]
[421867189,1778250640000,-500.0,0.00012342,2]
[421867192,1778250640000,-500.0,0.00012342,2]
[421867186,1778250640000,-500.0,0.00012341,2]
[421867158,1778250640000,-827.17,0.00012068,2]
[421867161,1778250640000,-827.99,0.00012068,2]
[421867162,1778250640000,-797.8814,0.00012068,2]
[421867160,1778250640000,-500.0,0.00012068,2]
[421867163,1778250640000,-1569.46,0.00012068,2]
[421867169,1778250640000,-500.0,0.0001207,2]
[421867170,1778250640000,-500.0,0.0001207,2]
[421867171,1778250640000,-500.0,0.0001207,2]
[421867164,1778250640000,-933.96,0.00012068,2]
[421867190,1778250640000,-500.0,0.00012342,2]
[421867172,1778250640000,-528.91,0.0001207,2]
[421867167,1778250640000,-500.0,0.0001207,2]
[421867174,1778250640000,-500.0,0.0001207,2]
[421867166,1778250640000,-500.0,0.0001207,2]
[421867173,1778250640000,-500.0,0.0001207,2]
[421867168,1778250640000,-500.0,0.0001207,2]
[421867187,1778250640000,-725.13,0.00012341,2]
[421867165,1778250640000,-500.0,0.0001207,2]
[421867185,1778250640000,-500.0,0.00012341,2]
[421867183,1778250640000,-500.0,0.00012341,2]
[421867180,1778250640000,-611.94,0.00012341,2]
[421867184,1778250640000,-500.0,0.00012341,2]
[421867178,1778250640000,-500.0,0.00012341,2]
[421867177,1778250640000,-1000.0,0.000123,2]
[421867176,1778250640000,-200.0,0.00012093,2]
[421867175,1778250640000,-500.0,0.0001207,2]
[421867181,1778250640000,-500.0,0.00012341,2]
[421867260,1778250641000,-500.0,0.00012889,2]
[421867257,1778250641000,-500.0,0.00012889,2]
[421867259,1778250641000,-500.0,0.00012889,2]
[421867251,1778250641000,-528.91,0.00012618,2]
[421867258,1778250641000,-500.0,0.00012889,2]
[421867252,1778250641000,-500.0,0.00012618,2]
[421867253,1778250641000,-500.0,0.00012618,2]
[421867249,1778250641000,-500.0,0.00012618,2]
[421867250,1778250641000,-500.0,0.00012618,2]
[421867261,1778250641000,-500.0,0.00012889,2]
[421867256,1778250641000,-180.0,0.00012776,2]
[421867263,1778250641000,-725.13,0.00012889,2]
[421867274,1778250641000,-500.0,0.0001289,2]
[421867262,1778250641000,-500.0,0.00012889,2]
[421867265,1778250641000,-379.55632671,0.0001289,2]
[421867264,1778250641000,-258.15941241,0.0001289,2]
[421867267,1778250641000,-500.0,0.0001289,2]
[421867269,1778250641000,-587.1,0.0001289,2]
[421867268,1778250641000,-910.45,0.0001289,2]
[421867272,1778250641000,-581.79,0.0001289,2]
[421867278,1778250641000,-933.96,0.0001289,2]
[421867271,1778250641000,-1142.42,0.0001289,2]
[421867275,1778250641000,-827.99,0.0001289,2]
[421867270,1778250641000,-5837.42,0.0001289,2]
[421867248,1778250641000,-500.0,0.00012618,2]
[421867266,1778250641000,-500.0,0.0001289,2]
[421867247,1778250641000,-500.0,0.00012618,2]
[421867221,1778250641000,-200.0,0.00012515,2]
[421867255,1778250641000,-600.0,0.00012692,2]
[421867220,1778250641000,-160.0,0.00012411,2]
[421867231,1778250641000,-500.0,0.00012616,2]
[421867223,1778250641000,-500.0,0.00012615,2]
[421867224,1778250641000,-500.0,0.00012615,2]
[421867222,1778250641000,-1148.65,0.00012599,2]
[421867225,1778250641000,-500.0,0.00012615,2]
[421867228,1778250641000,-500.0,0.00012615,2]
[421867226,1778250641000,-500.0,0.00012615,2]
[421867230,1778250641000,-500.0,0.00012616,2]
[421867229,1778250641000,-725.13,0.00012615,2]
[421867227,1778250641000,-500.0,0.00012615,2]
[421867232,1778250641000,-500.0,0.00012616,2]
[421867235,1778250641000,-587.1,0.00012616,2]
[421867234,1778250641000,-910.45,0.00012616,2]
[421867233,1778250641000,-500.0,0.00012616,2]
[421867236,1778250641000,-5837.42,0.00012616,2]
[421867237,1778250641000,-1142.42,0.00012616,2]
[421867243,1778250641000,-797.8814,0.00012616,2]
[421867240,1778250641000,-632.88,0.00012616,2]
[421867242,1778250641000,-827.99,0.00012616,2]
[421867238,1778250641000,-581.79,0.00012616,2]
[421867239,1778250641000,-827.17,0.00012616,2]
[421867245,1778250641000,-933.96,0.00012616,2]
[421867244,1778250641000,-1569.46,0.00012616,2]
[421867254,1778250641000,-500.0,0.00012618,2]
[421867246,1778250641000,-500.0,0.00012618,2]
[421867273,1778250641000,-827.17,0.0001289,2]
[421867241,1778250641000,-500.0,0.00012616,2]
[421867276,1778250641000,-605.6818,0.0001289,2]
[421867311,1778250641000,-528.91,0.00013166,2]
[421867308,1778250641000,-500.0,0.00013166,2]
[421867309,1778250641000,-500.0,0.00013166,2]
[421867315,1778250641000,-1411.0,0.00013225,2]
[421867305,1778250641000,-1569.46,0.00013164,2]
[421867314,1778250641000,-645.978,0.00013225,2]
[421867307,1778250641000,-500.0,0.00013166,2]
[421867318,1778250641000,-442.0,0.00013225,2]
[421867317,1778250641000,-185.0,0.00013225,2]
[421867320,1778250641000,-240.35987895,0.00013369,21]
[421867316,1778250641000,-2215.0,0.00013225,2]
[421867319,1778250641000,-411.40096524,0.00013365,14]
[421867312,1778250641000,-500.0,0.00013166,2]
[421867322,1778250641000,-500.0,0.00013437,2]
[421867321,1778250641000,-500.0,0.00013437,2]
[421867324,1778250641000,-500.0,0.00013437,2]
[421867326,1778250641000,-500.0,0.00013437,2]
[421867325,1778250641000,-500.0,0.00013437,2]
[421867327,1778250641000,-725.13,0.00013437,2]
[421867331,1778250641000,-587.1,0.00013438,2]
[421867332,1778250641000,-5837.42,0.00013438,2]
[421867329,1778250641000,-500.0,0.00013438,2]
[421867333,1778250641000,-1142.42,0.00013438,2]
[421867328,1778250641000,-500.0,0.00013438,2]
[421867334,1778250641000,-581.79,0.00013438,2]
[421867277,1778250641000,-1569.46,0.0001289,2]
[421867323,1778250641000,-396.46,0.00013437,2]
[421867310,1778250641000,-522.41950007,0.00013166,2]
[421867330,1778250641000,-910.45,0.00013438,2]
[421867313,1778250641000,-500.0,0.00013166,2]
[421867304,1778250641000,-827.99,0.00013164,2]
[421867281,1778250641000,-500.0,0.00012892,2]
[421867282,1778250641000,-500.0,0.00012892,2]
[421867283,1778250641000,-528.91,0.00012892,2]
[421867284,1778250641000,-500.0,0.00012892,2]
[421867285,1778250641000,-184.27,0.00012892,2]
[421867288,1778250641000,-500.0,0.00013163,2]
[421867280,1778250641000,-500.0,0.00012892,2]
[421867286,1778250641000,-500.0,0.00012892,2]
[421867287,1778250641000,-2547.69737462,0.000129,2]
[421867290,1778250641000,-500.0,0.00013163,2]
[421867289,1778250641000,-500.0,0.00013163,2]
[421867291,1778250641000,-500.0,0.00013163,2]
[421867279,1778250641000,-500.0,0.00012892,2]
[421867300,1778250641000,-1142.42,0.00013164,2]
[421867301,1778250641000,-581.79,0.00013164,2]
[421867306,1778250641000,-933.96,0.00013164,2]
[421867295,1778250641000,-500.0,0.00013164,2]
[421867293,1778250641000,-500.0,0.00013163,2]
[421867299,1778250641000,-5837.42,0.00013164,2]
[421867296,1778250641000,-500.0,0.00013164,2]
[421867294,1778250641000,-725.13,0.00013163,2]
[421867298,1778250641000,-587.1,0.00013164,2]
[421867292,1778250641000,-500.0,0.00013163,2]
[421867302,1778250641000,-827.17,0.00013164,2]
[421867303,1778250641000,-500.0,0.00013164,2]
[421867297,1778250641000,-910.45,0.00013164,2]
[421867364,1778250642000,-587.1,0.00013712,2]
[421867366,1778250642000,-1022.09228858,0.00013712,2]
[421867365,1778250642000,-5837.42,0.00013712,2]
[421867368,1778250642000,-581.79,0.00013712,2]
[421867367,1778250642000,-120.32771142,0.00013712,2]
[421867369,1778250642000,-827.17,0.00013712,2]
[421867370,1778250642000,-500.0,0.00013712,2]
[421867374,1778250642000,-500.0,0.00013714,2]
[421867372,1778250642000,-1569.46,0.00013712,2]
[421867371,1778250642000,-827.99,0.00013712,2]
[421867377,1778250642000,-528.91,0.00013714,2]
[421867373,1778250642000,-933.96,0.00013712,2]
[421867376,1778250642000,-500.0,0.00013714,2]
[421867379,1778250642000,-500.0,0.00013714,2]
[421867386,1778250642000,-500.0,0.00013985,2]
[421867356,1778250642000,-500.0,0.00013711,2]
[421867383,1778250642000,-500.0,0.00013985,2]
[421867387,1778250642000,-500.0,0.00013985,2]
[421867381,1778250642000,-2547.69737462,0.00013885,2]
[421867378,1778250642000,-368.42240365,0.00013714,2]
[421867382,1778250642000,-720.0,0.00013961,2]
[421867380,1778250642000,-180.43500871,0.00013815,2]
[421867385,1778250642000,-500.0,0.00013985,2]
[421867375,1778250642000,-500.0,0.00013714,2]
[421867361,1778250642000,-514.15,0.00013712,2]
[421867354,1778250642000,-1000.0,0.00013699,2]
[421867360,1778250642000,-725.13,0.00013711,2]
[421867384,1778250642000,-500.0,0.00013985,2]
[421867336,1778250642000,-500.0,0.00013438,2]
[421867337,1778250642000,-827.99,0.00013438,2]
[421867335,1778250642000,-827.17,0.00013438,2]
[421867338,1778250642000,-1569.46,0.00013438,2]
[421867345,1778250642000,-500.0,0.0001344,2]
[421867344,1778250642000,-500.0,0.0001344,2]
[421867347,1778250642000,-500.0,0.00013698,2]
[421867349,1778250642000,-500.0,0.00013698,2]
[421867339,1778250642000,-933.96,0.00013438,2]
[421867342,1778250642000,-500.0,0.0001344,2]
[421867362,1778250642000,-430.25,0.00013712,2]
[421867350,1778250642000,-500.0,0.00013698,2]
[421867351,1778250642000,-532.69864627,0.00013698,2]
[421867341,1778250642000,-500.0,0.0001344,2]
[421867346,1778250642000,-459.1080766,0.00013663,2]
[421867340,1778250642000,-500.0,0.0001344,2]
[421867353,1778250642000,-1560.0,0.00013699,2]
[421867363,1778250642000,-910.45,0.00013712,2]
[421867352,1778250642000,-1000.0,0.00013699,2]
[421867359,1778250642000,-500.0,0.00013711,2]
[421867358,1778250642000,-500.0,0.00013711,2]
[421867355,1778250642000,-500.0,0.00013711,2]
[421867357,1778250642000,-500.0,0.00013711,2]
[421867348,1778250642000,-500.0,0.00013698,2]
[421867389,1778250642000,-910.45,0.00013986,2]
[421867343,1778250642000,-528.91,0.0001344,2]
[421867398,1778250642000,-933.96,0.00013986,2]
[421867418,1778250642000,-581.79,0.0001426,2]
[421867422,1778250642000,-1569.46,0.0001426,2]
[421867424,1778250642000,-500.0,0.00014262,2]
[421867423,1778250642000,-933.96,0.0001426,2]
[421867419,1778250642000,-827.17,0.0001426,2]
[421867420,1778250642000,-500.0,0.0001426,2]
[421867421,1778250642000,-827.99,0.0001426,2]
[421867428,1778250642000,-528.91,0.00014262,2]
[421867429,1778250642000,-500.0,0.00014262,2]
[421867431,1778250642000,-160.0,0.00014406,7]
[421867430,1778250642000,-11706.17563471,0.00014404,2]
[421867432,1778250642000,-283.59435,0.00014406,7]
[421867433,1778250642000,-407.1887,0.00014406,7]
[421867434,1778250642000,-160.387576,0.00014406,2]
[421867436,1778250642000,-188.006065,0.00014406,7]
[421867439,1778250642000,-500.0,0.00014533,2]
[421867438,1778250642000,-500.0,0.00014533,2]
[421867441,1778250642000,-500.0,0.00014533,2]
[421867442,1778250642000,-725.13,0.00014533,2]
[421867444,1778250642000,-587.1,0.00014534,2]
[421867443,1778250642000,-910.45,0.00014534,2]
[421867445,1778250642000,-2420.74225928,0.00014534,2]
[421867446,1778250642000,-3416.67774072,0.00014534,2]
[421867425,1778250642000,-500.0,0.00014262,2]
[421867415,1778250642000,-587.1,0.0001426,2]
[421867440,1778250642000,-500.0,0.00014533,2]
[421867416,1778250642000,-5837.42,0.0001426,2]
[421867426,1778250642000,-552.79,0.00014262,2]
[421867400,1778250642000,-500.0,0.00013988,2]
[421867388,1778250642000,-725.13,0.00013985,2]
[421867391,1778250642000,-5837.42,0.00013986,2]
[421867390,1778250642000,-587.1,0.00013986,2]
[421867392,1778250642000,-1142.42,0.00013986,2]
[421867393,1778250642000,-581.79,0.00013986,2]
[421867395,1778250642000,-500.0,0.00013986,2]
[421867394,1778250642000,-827.17,0.00013986,2]
[421867396,1778250642000,-827.99,0.00013986,2]
[421867403,1778250642000,-528.91,0.00013988,2]
[421867407,1778250642000,-1560.0,0.00014247,2]
[421867397,1778250642000,-1569.46,0.00013986,2]
[421867406,1778250642000,-6078.27464327,0.00014175,2]
[421867404,1778250642000,-500.0,0.00013988,2]
[421867414,1778250642000,-910.45,0.0001426,2]
[421867417,1778250642000,-1142.42,0.0001426,2]
[421867412,1778250642000,-500.0,0.00014259,2]
[421867402,1778250642000,-500.0,0.00013988,2]
[421867410,1778250642000,-506.79649148,0.00014259,2]
[421867413,1778250642000,-725.13,0.00014259,2]
[421867411,1778250642000,-500.0,0.00014259,2]
[421867408,1778250642000,-500.0,0.00014259,2]
[421867409,1778250642000,-500.0,0.00014259,2]
[421867401,1778250642000,-500.0,0.00013988,2]
[421867405,1778250642000,-477.60131027,0.00013998,2]
[421867448,1778250643000,-581.79,0.00014534,2]
[421867449,1778250643000,-827.17,0.00014534,2]
[421867452,1778250643000,-1569.46,0.00014534,2]
[421867451,1778250643000,-827.99,0.00014534,2]
[421867461,1778250643000,-442.13082972,0.00014699,2]
[421867463,1778250643000,-185507.43860846,0.000147,5]
[421867455,1778250643000,-500.0,0.00014536,2]
[421867447,1778250643000,-1142.42,0.00014534,2]
[421867460,1778250643000,-155.0,0.00014699,2]
[421867450,1778250643000,-500.0,0.00014534,2]
[421867453,1778250643000,-933.96,0.00014534,2]
[421867464,1778250643000,-12058.0,0.000147,5]
[421867466,1778250643000,-4868.7877619,0.000147,5]
[421867465,1778250643000,-500.0,0.00010971,2]
[421867456,1778250643000,-528.91,0.00014536,2]
[421867457,1778250643000,-500.0,0.00014536,2]
[421867454,1778250643000,-500.0,0.00014536,2]
[421867458,1778250643000,-500.0,0.00014589,2]
[421867459,1778250643000,-6385.68817182,0.000146,2]
[421867462,1778250643000,-1766.75479556,0.00014699,2]
[421867488,1778250654000,-500.0,0.00010861,2]
[421867489,1778250654000,-4500.0,0.00010861,2]
[421867490,1778250654000,-500.0,0.00011245,2]
[421867491,1778250654000,-500.0,0.00011519,2]
[421867492,1778250654000,-500.0,0.00011793,2]
[421867494,1778250654000,-500.0,0.00012341,2]
[421867493,1778250654000,-500.0,0.00012067,2]
[421867502,1778250654000,-7337.13100449,0.000147,5]
[421867497,1778250654000,-415.66520092,0.00013163,2]
[421867499,1778250654000,-1850.71615605,0.000147,5]
[421867500,1778250654000,-5054.87244665,0.000147,5]